bitfinex-derivatives/quotes_BTCF0:USTF0_20250322
["timestamp","ask_amount","ask_price","bid_price","bid_amount"]
[1742638686201,0.11960135,84459.0,84458.0,0.55658173]
[1742638686412,0.11840134,84459.0,84458.0,0.55658173]
[1742638686805,0.11964135,84459.0,84458.0,0.55658173]
[1742638687111,0.00124001,84459.0,84458.0,0.55658173]
[1742638687312,0.0592179,84466.0,84465.0,0.1184372]
[1742638687504,0.1184338,84468.0,84467.0,0.118433]
[1742638687699,0.11967381,84468.0,84467.0,0.119673]
[1742638688204,0.23806253,84468.0,84467.0,0.13329534]
[1742638688404,0.23806253,84468.0,84467.0,0.19669534]
[1742638693003,0.11962873,84468.0,84467.0,0.19669534]
[1742638693408,0.23806173,84468.0,84467.0,0.19669534]
[1742638693611,0.26996173,84468.0,84467.0,0.19669534]
[1742638693816,0.30146173,84468.0,84467.0,0.19669534]
[1742638714138,0.30146173,84468.0,84467.0,0.21177405]
[1742638714528,0.30146173,84468.0,84467.0,0.07971871]
[1742638714739,0.30146173,84468.0,84467.0,0.01631871]
[1742638714928,0.30146173,84468.0,84467.0,0.00124]
[1742638715936,0.30146173,84468.0,84467.0,0.1196744]
[1742638718742,0.31483642,84468.0,84467.0,0.1503744]
[1742638720050,0.30146173,84468.0,84467.0,0.1503744]
[1742638726043,0.30146173,84468.0,84467.0,0.1826744]
[1742638727643,0.18302873,84468.0,84467.0,0.1826744]
[1742638727852,0.30146173,84468.0,84467.0,0.1826744]
[1742638739136,0.30146173,84468.0,84467.0,0.19769164]
[1742638742256,0.30146173,84468.0,84467.0,0.1826744]
[1742638755552,0.30146173,84468.0,84467.0,0.00124]
[1742638755553,0.47821525,84468.0,84467.0,0.00124]
[1742638756351,0.47821525,84468.0,84467.0,0.06374]
[1742638760159,0.47821525,84468.0,84467.0,0.00124]
[1742638760548,0.47821525,84468.0,84467.0,0.03144]
[1742638760949,0.47821525,84468.0,84467.0,0.06414]
[1742638761856,0.47821525,84468.0,84467.0,0.03144]
[1742638762061,0.47821525,84468.0,84467.0,0.0302]
[1742638762463,0.47821525,84468.0,84467.0,0.0314]
[1742638763559,0.47821525,84468.0,84467.0,0.0302]
[1742638764762,0.47821525,84468.0,84467.0,0.03144]
[1742638764957,0.11844,84463.0,84462.0,0.13214427]
[1742638765163,0.11964001,84463.0,84462.0,0.1196814]
[1742638765462,0.21884001,84463.0,84462.0,0.1196814]
[1742638765652,0.33722873,84463.0,84462.0,0.1827814]
[1742638767363,0.33722873,84463.0,84462.0,0.19579258]
[1742638785770,0.30392873,84463.0,84462.0,0.19579258]
[1742638785969,0.41880873,84463.0,84462.0,0.19579258]
[1742638789181,0.35290873,84463.0,84462.0,0.19579258]
[1742638789979,0.23802873,84463.0,84462.0,0.19579258]
[1742638790187,0.27032873,84463.0,84462.0,0.19579258]
[1742638791583,0.30272873,84463.0,84462.0,0.19579258]
[1742638798693,0.27032873,84463.0,84462.0,0.19579258]
[1742638798881,0.15188873,84463.0,84462.0,0.19579258]
[1742638799079,0.27032873,84463.0,84462.0,0.19579258]
[1742638800894,0.30042873,84463.0,84462.0,0.19579258]
[1742638802600,0.18198873,84463.0,84462.0,0.19579258]
[1742638804000,0.30042873,84463.0,84462.0,0.19579258]
[1742638807303,0.30042873,84463.0,84462.0,0.210714]
[1742638807800,0.33112873,84463.0,84462.0,0.210714]
[1742638808192,0.33112873,84463.0,84462.0,0.19579258]
[1742638823714,0.33112873,84463.0,84462.0,0.16369258]
[1742638824518,0.33112873,84463.0,84462.0,0.19559258]
[1742638829124,0.33112873,84463.0,84462.0,0.16369258]
[1742638829620,0.33112873,84463.0,84462.0,0.19589258]
[1742638837817,0.33112873,84463.0,84462.0,0.06444]
[1742638838019,0.33112873,84463.0,84462.0,0.0632]
[1742638838225,0.33112873,84463.0,84462.0,0.0644]
[1742638840330,0.33112873,84463.0,84449.0,0.21302955]
[1742638840331,0.1184568,84451.0,84449.0,0.21302955]
[1742638840624,0.1184568,84451.0,84450.0,0.00101757]
[1742638840824,0.29688083,84451.0,84450.0,0.00101757]
[1742638841025,0.5218642,84451.0,84450.0,0.00101757]
[1742638843226,0.5228642,84451.0,84450.0,0.00101757]
[1742638843424,0.5228642,84451.0,84450.0,0.00017757]
[1742638847037,0.8836642,84451.0,84450.0,0.00017757]
[1742638851331,0.87047656,84451.0,84450.0,0.00017757]
[1742638860249,0.87047656,84451.0,84450.0,0.00101757]
[1742638861247,0.87047656,84451.0,84450.0,0.00017757]
[1742638863650,0.50967656,84451.0,84450.0,0.00017757]
[1742638863954,0.87047656,84451.0,84450.0,0.00017757]
[1742638864157,0.50967656,84451.0,84450.0,0.00017757]
[1742638864558,0.47817656,84451.0,84450.0,0.00101757]
[1742638867243,0.47817656,84451.0,84450.0,0.01362743]
[1742638870554,0.47817656,84451.0,84450.0,0.01278743]
[1742638871047,0.47817656,84451.0,84450.0,0.01362743]
[1742638873449,0.47817656,84451.0,84450.0,0.00101757]
[1742638873655,0.47817656,84451.0,84450.0,0.00017757]
[1742638874250,0.47817656,84451.0,84450.0,0.00101757]
[1742638874449,0.47817656,84451.0,84450.0,0.06411757]
[1742638874750,0.47817656,84451.0,84450.0,0.06327757]
[1742638876155,0.47817656,84451.0,84450.0,0.06411757]
[1742638877854,0.47817656,84451.0,84450.0,0.06327757]
[1742638878054,0.47817656,84451.0,84450.0,0.06411757]
[1742638879556,0.47817656,84451.0,84450.0,0.06327757]
[1742638882873,0.47817656,84451.0,84450.0,0.06411757]
[1742638883165,0.83897656,84451.0,84450.0,0.06327757]
[1742638883367,0.86280541,84451.0,84450.0,0.06327757]
[1742638883762,0.86280541,84451.0,84450.0,0.03307757]
[1742638883962,0.86280541,84451.0,84450.0,0.00017757]
[1742638891278,0.50200541,84451.0,84450.0,0.00017757]
[1742638891469,0.83897656,84451.0,84450.0,0.00017757]
[1742638891666,0.86280541,84451.0,84450.0,0.00017757]
[1742638896277,0.50200541,84451.0,84450.0,0.00017757]
[1742638896487,0.83897656,84451.0,84450.0,0.00017757]
[1742638896784,0.86280541,84451.0,84450.0,0.00017757]
[1742638898285,0.50200541,84451.0,84450.0,0.00017757]
[1742638898484,0.83897656,84451.0,84450.0,0.00017757]
[1742638898685,0.86280541,84451.0,84450.0,0.00017757]
[1742638899783,0.50200541,84451.0,84450.0,0.00017757]
[1742638899981,0.83897656,84451.0,84450.0,0.00017757]
[1742638900190,0.86280541,84451.0,84450.0,0.00017757]
[1742638903772,0.50200541,84451.0,84450.0,0.00017757]
[1742638903977,0.83897656,84451.0,84450.0,0.00017757]
[1742638904186,0.86280541,84451.0,84450.0,0.00017757]
[1742638904881,0.47817656,84451.0,84450.0,0.00017757]
[1742638905086,0.44677656,84451.0,84450.0,0.11951577]
[1742638905293,0.0730363,84451.0,84450.0,0.48027577]
[1742638905477,0.1184505,84456.0,84455.0,0.1184512]
[1742638905674,0.1199305,84456.0,84455.0,0.1199712]
[1742638906078,0.1199298,84456.0,84455.0,0.1199712]
[1742638906484,0.23834236,84456.0,84455.0,0.1199712]
[1742638908689,0.23834236,84456.0,84455.0,0.1857712]
[1742638915997,0.27154236,84456.0,84455.0,0.1857712]
[1742638924887,0.30444236,84456.0,84455.0,0.1857712]
[1742638928400,0.48124289,84456.0,84455.0,0.00152]
[1742638928591,0.48124289,84456.0,84451.0,0.3608]
[1742638928592,0.1184554,84452.0,84451.0,0.3608]
[1742638928793,0.1194554,84452.0,84451.0,0.3618]
[1742638929104,0.29625593,84452.0,84451.0,0.3618]
[1742638929309,0.41466148,84452.0,84451.0,0.3618]
[1742638931301,0.41466148,84452.0,84451.0,0.001]
[1742638931505,0.1184568,84451.0,84450.0,0.00017757]
[1742638931806,0.26457681,84451.0,84450.0,0.00017757]
[1742638931998,0.47360027,84451.0,84450.0,0.00017757]
[1742638932198,0.59201142,84451.0,84450.0,0.00017757]
[1742638935407,0.1184736,84439.0,84438.0,0.1184742]
[1742638935616,0.1194736,84439.0,84438.0,0.1194742]
[1742638936098,0.23788616,84439.0,84438.0,0.1501742]
[1742638936298,0.30168616,84439.0,84438.0,0.1501742]
[1742638936497,0.30168616,84439.0,84438.0,0.0317]
[1742638936716,0.30168616,84439.0,84438.0,0.0327]
[1742638936906,0.30168616,84439.0,84438.0,0.03378]
[1742638937307,0.30168616,84439.0,84438.0,0.0357]
[1742638937515,0.30168616,84439.0,84438.0,0.04959663]
[1742638937698,0.30168616,84439.0,84438.0,0.04851663]
[1742638937905,0.30168616,84439.0,84438.0,0.04951663]
[1742638940012,0.47911117,84439.0,84438.0,0.01881663]
[1742638940217,0.47911117,84439.0,84438.0,0.005]
[1742638940716,0.47911117,84439.0,84438.0,0.00604]
[1742638940917,0.47911117,84439.0,84438.0,0.005]
[1742638942114,0.47911117,84439.0,84438.0,0.006]
[1742638942415,0.47911117,84439.0,84438.0,0.001]
[1742638942619,0.1184793,84435.0,84434.0,0.0318]
[1742638942802,0.1191593,84435.0,84434.0,0.04531975]
[1742638943316,0.23758868,84435.0,84434.0,0.04531975]
[1742638943512,0.30128868,84435.0,84434.0,0.04531975]
[1742638946929,0.30128868,84435.0,84434.0,0.40611975]
[1742638950523,0.30128868,84435.0,84434.0,0.3936]
[1742638951721,0.30128868,84435.0,84434.0,0.0328]
[1742638957025,0.30128868,84435.0,84434.0,0.0635]
[1742638960539,0.30128868,84435.0,84434.0,0.0328]
[1742638960726,0.30128868,84435.0,84434.0,0.0318]
[1742638960928,0.30128868,84435.0,84434.0,0.0328]
[1742638961123,0.30128868,84435.0,84434.0,0.0318]
[1742638961328,0.30128868,84435.0,84434.0,0.03284]
[1742638961926,0.30128868,84435.0,84434.0,0.0318]
[1742638962329,0.30128868,84435.0,84434.0,0.03288]
[1742638962528,0.30128868,84435.0,84434.0,0.0318]
[1742638967643,0.30128868,84435.0,84434.0,0.0328]
[1742638967837,0.30128868,84435.0,84434.0,0.0318]
[1742638968037,0.30128868,84435.0,84434.0,0.0328]
[1742638968240,0.30128868,84435.0,84434.0,0.0318]
[1742638968741,0.30128868,84435.0,84434.0,0.0328]
[1742638968942,0.30128868,84435.0,84434.0,0.0318]
[1742638969939,0.30128868,84435.0,84434.0,0.0328]
[1742638970246,0.30128868,84435.0,84434.0,0.0318]
[1742638974650,0.30128868,84435.0,84434.0,0.0328]
[1742638976653,0.38470868,84435.0,84434.0,0.0328]
[1742638977159,0.41660868,84435.0,84434.0,0.0328]
[1742638977354,0.30188868,84435.0,84434.0,0.0328]
[1742638977555,0.41660868,84435.0,84434.0,0.0328]
[1742638977955,0.41660868,84435.0,84434.0,0.1512807]
[1742638979453,0.41660868,84435.0,84434.0,0.1813807]
[1742638986471,0.41660868,84435.0,84434.0,0.0629]
[1742638986667,0.41660868,84435.0,84434.0,0.1813807]
[1742638986870,0.41660868,84435.0,84434.0,0.1512807]
[1742638988056,0.41660868,84435.0,84434.0,0.0328]
[1742638988262,0.41660868,84435.0,84434.0,0.1512807]
[1742638989669,0.41660868,84435.0,84434.0,0.1825807]
[1742638990569,0.41660868,84435.0,84434.0,0.1512807]
[1742638993664,0.41660868,84435.0,84434.0,0.0328]
[1742638993873,0.41660868,84435.0,84434.0,0.1512807]
[1742638994464,0.41660868,84435.0,84434.0,0.1502807]
[1742638997280,0.41660868,84435.0,84434.0,0.1512807]
[1742638998778,0.30188868,84435.0,84434.0,0.1823807]
[1742638998972,0.41656868,84435.0,84434.0,0.1823807]
[1742639002663,0.30188868,84435.0,84434.0,0.1823807]
[1742639002879,0.41656868,84435.0,84434.0,0.1823807]
[1742639005024,0.41656868,84435.0,84434.0,0.1512807]
[1742639005708,0.41656868,84435.0,84434.0,0.0328]
[1742639006611,0.41656868,84435.0,84434.0,0.1512807]
[1742639008987,0.41656868,84435.0,84434.0,0.0328]
[1742639009284,0.41656868,84435.0,84434.0,0.1512807]
[1742639009698,0.41656868,84435.0,84434.0,0.0328]
[1742639013192,0.41656868,84435.0,84434.0,0.1512807]
[1742639015385,0.41652868,84435.0,84434.0,0.1512807]
[1742639018678,0.41652868,84435.0,84434.0,0.0328]
[1742639022489,0.30188868,84435.0,84434.0,0.0328]
[1742639022694,0.41652868,84435.0,84434.0,0.0328]
[1742639023086,0.41652868,84435.0,84434.0,0.1512807]
[1742639025494,0.41652868,84435.0,84434.0,0.0328]
[1742639031509,0.41652868,84435.0,84434.0,0.1512807]
[1742639031688,0.41652868,84435.0,84434.0,0.1822807]
[1742639032291,0.15150938,84435.0,84434.0,0.5430807]
[1742639033785,0.26998868,84435.0,84434.0,0.5430807]
[1742639036302,0.03308,84435.0,84434.0,0.5430807]
[1742639036705,0.0592357,84441.0,84434.0,0.5430807]
[1742639036706,0.1184742,84439.0,84438.0,0.177709]
[1742639036894,0.00104001,84439.0,84438.0,0.178749]
[1742639037094,0.1520536,84439.0,84438.0,0.178749]
[1742639037804,0.03358,84439.0,84438.0,0.178749]
[1742639038500,0.1520536,84439.0,84438.0,0.178749]
[1742639038905,0.03358,84439.0,84438.0,0.178749]
[1742639039097,0.0325,84439.0,84438.0,0.178749]
[1742639039806,0.03358,84439.0,84438.0,0.178749]
[1742639042005,0.03358,84439.0,84438.0,0.539549]
[1742639042208,0.06398,84439.0,84438.0,0.539549]
[1742639042911,0.1824536,84439.0,84438.0,0.539549]
[1742639047408,0.30088298,84439.0,84438.0,0.539549]
[1742639055312,0.30088298,84439.0,84438.0,0.178749]
[1742639058016,0.18240938,84439.0,84438.0,0.178749]
[1742639058317,0.30088298,84439.0,84438.0,0.178749]
[1742639058520,0.30088298,84439.0,84438.0,0.211649]
[1742639058713,0.30088298,84439.0,84438.0,0.572449]
[1742639061116,0.18240938,84439.0,84438.0,0.604649]
[1742639061521,0.15200938,84439.0,84438.0,0.604649]
[1742639062923,0.18250938,84439.0,84438.0,0.604649]
[1742639063918,0.30098298,84439.0,84438.0,0.572449]
[1742639064111,0.33218298,84439.0,84438.0,0.572449]
[1742639065612,0.33218298,84439.0,84438.0,0.211649]
[1742639066912,0.18250938,84439.0,84438.0,0.572449]
[1742639067112,0.29990298,84439.0,84438.0,0.572449]
[1742639067322,0.30094299,84439.0,84438.0,0.572449]
[1742639067525,0.30094299,84439.0,84438.0,0.602949]
[1742639067713,0.33134299,84439.0,84438.0,0.572449]
[1742639074628,0.33134299,84439.0,84438.0,0.211649]
[1742639074829,0.33134299,84439.0,84438.0,0.572449]
[1742639078925,0.33134299,84439.0,84438.0,0.539549]
[1742639079513,0.33134299,84439.0,84438.0,0.4210768]
[1742639079720,0.50923432,84439.0,84438.0,0.480315]
[1742639081626,0.62379432,84439.0,84438.0,0.36184]
[1742639082026,0.62379432,84439.0,84438.0,0.480315]
[1742639095640,0.62379432,84439.0,84438.0,0.511215]
[1742639098847,0.62379432,84439.0,84438.0,0.39274]
[1742639099545,0.62379432,84439.0,84438.0,0.03194]
[1742639116059,0.62379432,84439.0,84438.0,0.150415]
[1742639124468,0.62379432,84439.0,84438.0,0.03194]
[1742639124858,0.62379432,84439.0,84438.0,0.150415]
[1742639125069,0.62379432,84439.0,84438.0,0.03194]
[1742639143871,0.62379432,84439.0,84438.0,0.150415]
[1742639146569,0.62379432,84439.0,84438.0,0.181815]
[1742639150581,0.50923432,84439.0,84438.0,0.181815]
[1742639150885,0.59335432,84439.0,84438.0,0.181815]
[1742639154789,0.62625432,84439.0,84438.0,0.150415]
[1742639158389,0.59335432,84439.0,84438.0,0.183515]
[1742639158592,0.32986072,84439.0,84438.0,0.183515]
[1742639158780,0.44833432,84439.0,84438.0,0.183515]
[1742639160086,0.44841432,84439.0,84438.0,0.183515]
[1742639160594,0.00112001,84439.0,84438.0,0.183515]
[1742639160793,8e-05,84439.0,84438.0,0.183515]
[1742639161790,0.0592356,84441.0,84440.0,0.1184708]
[1742639161989,0.178389,84441.0,84440.0,0.4803908]
[1742639162591,0.178389,84441.0,84440.0,0.1195908]
[1742639162794,0.178389,84441.0,84440.0,0.4803908]
[1742639163586,0.0599156,84441.0,84440.0,0.4803908]
[1742639164385,0.0924156,84441.0,84440.0,0.4803908]
[1742639165795,0.03318,84441.0,84440.0,0.4803908]
[1742639166792,0.1516508,84441.0,84440.0,0.4803908]
[1742639172392,0.03318,84441.0,84440.0,0.4803908]
[1742639173001,0.1516508,84441.0,84440.0,0.4803908]
[1742639174501,0.1832508,84441.0,84440.0,0.4803908]
[1742639179706,0.1832508,84441.0,84440.0,0.1195908]
[1742639179907,0.1832508,84441.0,84440.0,0.4803908]
[1742639180809,0.1832508,84441.0,84440.0,0.1195908]
[1742639181109,0.1832508,84441.0,84440.0,0.5128908]
[1742639181805,0.30167738,84441.0,84440.0,0.5125908]
[1742639182398,0.30167738,84441.0,84440.0,0.1517908]
[1742639182906,0.30167738,84441.0,84440.0,0.5125908]
[1742639187414,0.30167738,84441.0,84440.0,0.1517908]
[1742639187611,0.30167738,84441.0,84440.0,0.5125908]
[1742639187807,0.30167738,84441.0,84440.0,0.1517908]
[1742639188112,0.30167738,84441.0,84440.0,0.5125908]
[1742639191316,0.30167738,84441.0,84440.0,0.1517908]
[1742639191515,0.30167738,84441.0,84440.0,0.5125908]
[1742639194317,0.30167738,84441.0,84440.0,0.1517908]
[1742639194511,0.30167738,84441.0,84440.0,0.5125908]
[1742639196515,0.30167738,84441.0,84440.0,0.1517908]
[1742639196710,0.30167738,84441.0,84440.0,0.5125908]
[1742639198622,0.30167738,84441.0,84440.0,0.5447908]
[1742639203724,0.1516508,84441.0,84440.0,0.5447908]
[1742639204514,0.1517308,84441.0,84440.0,0.5447908]
[1742639204922,0.03326,84441.0,84440.0,0.5447908]
[1742639205822,0.1517308,84441.0,84440.0,0.5447908]
[1742639206610,0.1516508,84441.0,84440.0,0.5447908]
[1742639206815,0.1517308,84441.0,84440.0,0.5447908]
[1742639207624,0.03326,84441.0,84440.0,0.5447908]
[1742639209627,0.03326,84441.0,84440.0,0.1839908]
[1742639210023,0.03326,84441.0,84440.0,0.5447908]
[1742639210222,0.03258,84441.0,84440.0,0.5447908]
[1742639211223,0.06448,84441.0,84440.0,0.5447908]
[1742639214729,0.06448,84441.0,84440.0,0.1839908]
[1742639214926,0.06552001,84441.0,84440.0,0.5447908]
[1742639215127,0.06448,84441.0,84440.0,0.5447908]
[1742639215529,0.06552001,84441.0,84440.0,0.5447908]
[1742639215726,0.1829508,84441.0,84440.0,0.5447908]
[1742639217633,0.18399081,84441.0,84440.0,0.5447908]
[1742639221024,0.1829508,84441.0,84440.0,0.5447908]
[1742639226836,0.06448,84441.0,84440.0,0.5447908]
[1742639227938,0.1829508,84441.0,84440.0,0.5447908]
[1742639228630,0.06448,84441.0,84440.0,0.5447908]
[1742639228826,0.06552001,84441.0,84440.0,0.5447908]
[1742639229031,0.06448,84441.0,84440.0,0.5447908]
[1742639229332,0.1829508,84441.0,84440.0,0.5447908]
[1742639230229,0.18399081,84441.0,84440.0,0.5447908]
[1742639230824,0.06552001,84441.0,84440.0,0.5447908]
[1742639231031,0.06448,84441.0,84440.0,0.5447908]
[1742639231434,0.06556,84441.0,84440.0,0.5125908]
[1742639231739,0.30245738,84441.0,84440.0,0.4803908]
[1742639236236,0.30237738,84441.0,84440.0,0.4803908]
[1742639237740,0.30237738,84441.0,84440.0,0.5107908]
[1742639240545,0.30237738,84441.0,84440.0,0.1499908]
[1742639240744,0.30237738,84441.0,84440.0,0.5107908]
[1742639241242,0.30237738,84441.0,84440.0,0.1499908]
[1742639241439,0.30237738,84441.0,84440.0,0.5107908]
[1742639244842,0.30237738,84441.0,84440.0,0.1499908]
[1742639245043,0.30237738,84441.0,84440.0,0.5107908]
[1742639247135,0.31186356,84441.0,84440.0,0.47375137]
[1742639248143,0.30237738,84441.0,84440.0,0.11295137]
[1742639248344,0.30237738,84441.0,84440.0,0.47375137]
[1742639250437,0.30237738,84441.0,84440.0,0.36192]
[1742639250745,0.118475,84438.0,84437.0,0.4086]
[1742639251142,0.29694042,84438.0,84437.0,0.4094]
[1742639251339,0.29766042,84438.0,84437.0,0.4094]
[1742639251544,0.480287,84438.0,84437.0,0.4094]
[1742639252351,0.480287,84438.0,84437.0,0.0008]
[1742639252850,0.594647,84438.0,84437.0,0.0008]
[1742639263155,0.60423524,84438.0,84437.0,0.0008]
[1742639264059,0.60422991,84438.0,84437.0,0.0008]
[1742639265042,0.60422991,84438.0,84437.0,0.00010764]
[1742639265248,0.60422991,84438.0,84437.0,0.0006]
[1742639266055,0.60427089,84438.0,84437.0,0.0006]
[1742639274265,0.60427089,84438.0,84437.0,0.1190764]
[1742639274564,0.60427089,84438.0,84437.0,0.1492764]
[1742639274963,0.60427089,84438.0,84437.0,0.11223429]
[1742639275264,0.594647,84438.0,84437.0,0.14533429]
[1742639280969,0.594647,84438.0,84437.0,0.0633]
[1742639281261,0.60415987,84438.0,84437.0,0.0633]
[1742639281569,0.60415987,84438.0,84437.0,0.1817764]
[1742639282466,0.60415191,84438.0,84437.0,0.1817764]
[1742639282965,0.60415183,84438.0,84437.0,0.1817764]
[1742639285057,0.60415183,84438.0,84437.0,0.14473429]
[1742639285252,0.594647,84438.0,84437.0,0.02625789]
[1742639286269,0.60417994,84438.0,84437.0,0.02625789]
[1742639286869,0.61361042,84438.0,84437.0,0.00361396]
[1742639288364,0.61368158,84438.0,84437.0,0.00361396]
[1742639288570,0.6042511,84438.0,84437.0,0.00361396]
[1742639290471,0.60428347,84438.0,84437.0,0.00361396]
[1742639292269,0.60425984,84438.0,84437.0,0.00361396]
[1742639292665,0.61363788,84438.0,84437.0,0.00361396]
[1742639293275,0.61365341,84438.0,84437.0,0.00361396]
[1742639294958,0.61365341,84438.0,84435.0,0.0592396]
[1742639295163,0.61365341,84438.0,84435.0,0.05871145]
[1742639295164,0.1184779,84436.0,84435.0,0.05871145]
[1742639295372,0.12914628,84436.0,84435.0,0.05871145]
[1742639295571,0.22704628,84436.0,84435.0,0.05871145]
[1742639295875,0.35485511,84436.0,84435.0,0.05871145]
[1742639296071,0.35472587,84436.0,84435.0,0.05871145]
[1742639296476,0.35472587,84436.0,84433.0,0.4200409]
[1742639296477,0.1184807,84434.0,84433.0,0.3608]
[1742639296774,0.12917984,84434.0,84433.0,0.3614]
[1742639296959,0.38056456,84434.0,84433.0,0.3614]
[1742639297164,0.49900096,84434.0,84433.0,0.3614]
[1742639298164,0.49900096,84434.0,84433.0,0.0006]
[1742639301875,0.1184849,84431.0,84427.0,0.3608]
[1742639302168,0.25308208,84431.0,84430.0,0.00081757]
[1742639302367,0.43109551,84431.0,84430.0,0.00081757]
[1742639302568,0.54953191,84431.0,84430.0,0.00081757]
[1742639302868,0.61263191,84431.0,84430.0,0.00081757]
[1742639303674,0.61290746,84431.0,84430.0,0.00081757]
[1742639304675,0.61290746,84431.0,84430.0,0.00181757]
[1742639305174,0.1184891,84428.0,84427.0,0.32557281]
[1742639305378,0.1184947,84424.0,84423.0,0.0312]
[1742639305575,0.12990939,84424.0,84423.0,0.392]
[1742639305872,0.42493751,84424.0,84423.0,0.392]
[1742639306075,0.43431555,84424.0,84423.0,0.392]
[1742639306382,0.52981555,84424.0,84423.0,0.392]
[1742639306976,0.52981555,84424.0,84423.0,0.395]
[1742639308174,0.52981555,84424.0,84423.0,0.397]
[1742639309780,0.52981555,84424.0,84423.0,0.4058]
[1742639310171,0.52981555,84424.0,84423.0,0.397]
[1742639313078,0.52981555,84424.0,84423.0,0.5154961]
[1742639313281,0.52981555,84424.0,84423.0,0.5242961]
[1742639313483,0.52004087,84424.0,84423.0,0.5242961]
[1742639314073,0.52004087,84424.0,84423.0,0.4058]
[1742639314473,0.52004087,84424.0,84423.0,0.045]
[1742639314681,0.52004087,84424.0,84423.0,0.5242961]
[1742639315784,0.48964087,84424.0,84423.0,0.5242961]
[1742639317384,0.48026283,84424.0,84423.0,0.5242961]
[1742639318787,0.48026283,84424.0,84423.0,0.1634961]
[1742639319086,0.48026283,84424.0,84423.0,0.5242961]
[1742639326691,0.48026283,84424.0,84423.0,0.1634961]
[1742639326989,0.48972724,84424.0,84423.0,0.5154961]
[1742639329090,0.48972724,84424.0,84423.0,0.1546961]
[1742639329289,0.48972724,84424.0,84423.0,0.5154961]
[1742639330188,0.48972724,84424.0,84423.0,0.1546961]
[1742639330389,0.48972724,84424.0,84423.0,0.5154961]
[1742639332192,0.48972724,84424.0,84423.0,0.1546961]
[1742639332386,0.48972724,84424.0,84423.0,0.5154961]
[1742639332781,0.48972724,84424.0,84423.0,0.1546961]
[1742639332981,0.48972724,84424.0,84423.0,0.5154961]
[1742639333182,0.48972724,84424.0,84423.0,0.1546961]
[1742639333389,0.48972724,84424.0,84423.0,0.5154961]
[1742639334883,0.48972724,84424.0,84423.0,0.397]
[1742639335092,0.48972724,84424.0,84423.0,0.3658]
[1742639336691,0.48972724,84424.0,84423.0,0.399]
[1742639336893,0.48972724,84424.0,84423.0,0.5174961]
[1742639340990,0.48026283,84424.0,84423.0,0.5174961]
[1742639342489,0.48963998,84424.0,84423.0,0.5174961]
[1742639343889,0.48026283,84424.0,84423.0,0.5174961]
[1742639347992,0.51176283,84424.0,84423.0,0.5174961]
[1742639348188,0.51176283,84424.0,84423.0,0.1566961]
[1742639348392,0.51176283,84424.0,84423.0,0.5174961]
[1742639353605,0.51176283,84424.0,84423.0,0.1566961]
[1742639353802,0.51176283,84424.0,84423.0,0.5174961]
[1742639354407,0.51176283,84424.0,84423.0,0.1566961]
[1742639354601,0.51176283,84424.0,84423.0,0.5174961]
[1742639356695,0.51176283,84424.0,84423.0,0.1566961]
[1742639356904,0.51176283,84424.0,84423.0,0.5174961]
[1742639358206,0.52120264,84424.0,84423.0,0.5174961]
[1742639358608,0.52120264,84424.0,84423.0,0.1566961]
[1742639359107,0.52120264,84424.0,84423.0,0.5174961]
[1742639360911,0.52120264,84424.0,84423.0,0.1566961]
[1742639361097,0.52120264,84424.0,84423.0,0.5174961]
[1742639362406,0.52120264,84424.0,84423.0,0.1566961]
[1742639362910,0.52120264,84424.0,84423.0,0.5174961]
[1742639364509,0.52120264,84424.0,84423.0,0.1566961]
[1742639364711,0.52120264,84424.0,84423.0,0.5174961]
[1742639365310,0.52120264,84424.0,84423.0,0.1566961]
[1742639365503,0.52120264,84424.0,84423.0,0.5174961]
[1742639366714,0.52120264,84424.0,84423.0,0.1566961]
[1742639366915,0.52120264,84424.0,84423.0,0.5174961]
[1742639368918,0.52120264,84424.0,84423.0,0.1566961]
[1742639369228,0.52120264,84424.0,84423.0,0.5174961]
[1742639369421,0.52120264,84424.0,84423.0,0.1566961]
[1742639369621,0.52120264,84424.0,84423.0,0.5174961]
[1742639371218,0.52120264,84424.0,84423.0,0.1566961]
[1742639371726,0.52120264,84424.0,84423.0,0.5174961]
[1742639371929,0.52120264,84424.0,84423.0,0.1566961]
[1742639372125,0.52120264,84424.0,84423.0,0.5174961]
[1742639372926,0.53076254,84424.0,84423.0,0.5174961]
[1742639373624,0.53076255,84424.0,84423.0,0.5174961]
[1742639375132,0.38076785,84424.0,84423.0,0.5174961]
[1742639375324,0.05139972,84424.0,84423.0,0.5262961]
[1742639375521,0.05147972,84424.0,84423.0,0.5268961]
[1742639375828,0.05255973,84424.0,84423.0,0.5268961]
[1742639376221,0.17105443,84424.0,84423.0,0.5268961]
[1742639376619,0.05255973,84424.0,84423.0,0.5268961]
[1742639377026,0.04299982,84424.0,84423.0,0.5268961]
[1742639377232,0.04191981,84424.0,84423.0,0.5268961]
[1742639377637,0.16041451,84424.0,84423.0,0.5268961]
[1742639378021,0.16988073,84424.0,84423.0,0.5268961]
[1742639378225,0.17096074,84424.0,84423.0,0.5268961]
[1742639378832,0.16988073,84424.0,84423.0,0.5268961]
[1742639379021,0.16041451,84424.0,84423.0,0.5268961]
[1742639380033,0.16987849,84424.0,84423.0,0.5268961]
[1742639381137,0.20027849,84424.0,84423.0,0.5268961]
[1742639382340,0.23217849,84424.0,84423.0,0.5268961]
[1742639384137,0.22273868,84424.0,84423.0,0.5268961]
[1742639384439,0.22273868,84424.0,84423.0,0.1660961]
[1742639384639,0.22389868,84424.0,84423.0,0.5268961]
[1742639384841,0.22273868,84424.0,84423.0,0.5268961]
[1742639386931,0.2228578,84424.0,84423.0,0.5268961]
[1742639387242,0.2228578,84424.0,84423.0,0.5180961]
[1742639388837,0.2240178,84424.0,84423.0,0.5180961]
[1742639389038,0.2228726,84424.0,84423.0,0.5180961]
[1742639389234,0.2228726,84424.0,84423.0,0.1572961]
[1742639389445,0.2228726,84424.0,84423.0,0.5180961]
[1742639390843,0.22285651,84424.0,84423.0,0.5180961]
[1742639391438,0.22285651,84424.0,84423.0,0.1572961]
[1742639391638,0.22393652,84424.0,84423.0,0.5180961]
[1742639391847,0.22393652,84424.0,84423.0,0.1572961]
[1742639391848,0.22285651,84424.0,84423.0,0.1572961]
[1742639392145,0.22401651,84424.0,84423.0,0.5180961]
[1742639392348,0.22285651,84424.0,84423.0,0.1572961]
[1742639392543,0.22393652,84424.0,84423.0,0.5180961]
[1742639392851,0.22285651,84424.0,84423.0,0.5180961]
[1742639393039,0.22285651,84424.0,84423.0,0.1572961]
[1742639393239,0.22393652,84424.0,84423.0,0.5180961]
[1742639393446,0.22285651,84424.0,84423.0,0.5180961]
[1742639394751,0.22284146,84424.0,84423.0,0.5180961]
[1742639395460,0.22284146,84424.0,84423.0,0.1572961]
[1742639395650,0.22396147,84424.0,84423.0,0.1572961]
[1742639395848,0.22396147,84424.0,84423.0,0.5180961]
[1742639397247,0.21439471,84424.0,84423.0,0.5180961]